Cogmind - Beta 11 @@@ ROGUE MODE // 2022.03.18 @ 05:34:40 Player: woegarden Result: Destroyed self with Mini Grenade Launcher Performance ------------- Evolutions (1) 500 Regions Visited (2) 400 Robots Destroyed (23) 115 Value Destroyed (384) 384 Prototype IDs (0) 0 Alien Tech Used (0) 0 Bonus (0) 0 TOTAL SCORE: 1399 Bonus ------- None Cogmind --------- Core Integrity 0/400 Matter 112/300 Energy 88/100 System Corruption 0% Temperature Cool (0) Movement Core (50) Location -9/Materials Parts ------- > --- POWER (1) -------- (None) > --- PROPULSION (2) --- (None) > --- UTILITY (4) ------ Hacking Suite > --- WEAPON (2) ------- Mini Grenade Launcher > --- INVENTORY (5) ---- Advanced Visual Processing Unit Shotgun Peak State ------------ > --- POWER ------------ Light Ion Engine > --- PROPULSION ------- Hover Unit Improved Hover Unit > --- UTILITY ---------- Small Storage Unit Improved Terrain Scanner Seismic Detector Hacking Suite > --- WEAPON ----------- Small Laser Shotgun > --- INVENTORY -------- Light Ion Engine Wheel Wheel Compact Wheel Compact Wheel High-capacity Matter Pod Seismic Detector Grenade Launcher [Rating: 15] Favorites ----------- Power Light Ion Engine Engine Light Ion Engine Propulsion Compact Wheel Leg Aluminum Leg Wheel Compact Wheel Hover Unit Improved Hover Unit Utility Improved Terrain Scanner Device Improved Terrain Scanner Storage Small Storage Unit Hackware Hacking Suite Weapon Small Laser Energy Gun Small Laser Ballistic Gun Shotgun Launcher Grenade Launcher Slashing Weapon Mining Claw Build | -11 -10 -9 ------- Run | Scr Mat Mat Slots Evolved 2 | . . 2 Power . | . . . Propulsion . | . . . Utility 2 | . . 2 Weapon . | . . . Parts Attached 23 | 4 1 18 Power 2 | . . 2 Engine 2 | . . 2 Core . | . . . Reactor . | . . . Propulsion 8 | 2 . 6 Treads . | . . . Leg . | . . . Wheel 5 | 2 . 3 Hover 3 | . . 3 Flight . | . . . Utility 6 | 2 . 4 Device 3 | 2 . 1 Storage 2 | . . 2 Processor . | . . . Hackware 1 | . . 1 Protection . | . . . Artifact . | . . . Weapon 7 | . 1 6 Energy Gun 1 | . . 1 Energy Cannon . | . . . Ballistic Gun 1 | . . 1 Ballistic Cannon . | . . . Launcher 4 | . 1 3 Special Weapon . | . . . Impact Weapon . | . . . Slashing Weapon 1 | . . 1 Piercing Weapon . | . . . Special Melee Weapon . | . . . Unidentified Prototypes . | . . . Parts Lost 12 | . . 12 Power 2 | . . 2 Propulsion 4 | . . 4 Utility 4 | . . 4 Weapon 2 | . . 2 Highest Loss Streak 11 | . . 11 To Critical Strikes . | . . . Average Slot Usage (%) 86 | . 100 82 Engine 11 | . 14 9 Wheel 14 | . 28 10 Hover 7 | . . 9 Device 22 | . 28 20 Storage 7 | . . 10 Hackware 4 | . . 6 Energy Gun 8 | . 20 4 Ballistic Gun 5 | . . 7 Launcher 2 | . 7 1 Naked Turns . | . . . Heaviest Build 14 | 12 10 14 Greatest Support 32 | 32 32 32 Greatest Overweight (x) 3 | . . 3 Average Overweight (x) . | . . . Largest Inventory Capacity 8 | 8 5 8 Average Capacity 7 | 7 5 7 Most Carried 8 | 6 5 8 Average Carried 5 | 5 4 6 Final Capacity 5 | 5 5 5 Final Carried 5 | 5 5 2 Class Distribution -------------------- 83% | Mutant 16% | Scavenger-Mutant Dominant Class ---------------- Mutant | -10/Materials Mutant | -9/Materials Resources | -11 -10 -9 ----------- Run | Scr Mat Mat Matter Collected 308 | 240 68 . Remotely . | . . . Salvage Created 558 | 257 234 67 Parts 53 | 22 18 13 Haulers Intercepted . | . . . Recyclers Shooed 3 | 1 1 1 Parts Field Recycled . | . . . Retrieved Matter . | . . . Parts Self-Destructed . | . . . Prevented . | . . . Kills | -11 -10 -9 ------- Run | Scr Mat Mat Combat Hostiles Destroyed 7 | . 5 2 Melee 1 | . 1 . AOE 6 | . 4 2 Classes Destroyed 7 | 3 2 2 Worker 2 | 2 . . Tunneler 8 | 8 . . Recycler 2 | 1 1 . Operator 2 | . 1 1 Watcher 2 | . . 2 Swarmer 1 | . . 1 Grunt 6 | . 5 1 Best Kill Streak 5 | 4 5 3 Combat Bots Only 3 | . 3 1 Max Kills in Single Turn 3 | 3 2 3 Gunslinging . | . . . Exploded 2 | . 2 1 Melee 1 | . 1 . Uniques/NPCs Destroyed . | . . . Combat | -11 -10 -9 -------- Run | Scr Mat Mat Damage Taken 1197 | . 192 1005 Core 497 | . 58 439 Absorbed by Shields . | . . . Core Remaining (%) 88 | 100 76 . Volleys Fired 39 | 15 10 14 Largest 2 | 2 2 2 Hottest 80 | 80 80 63 Shots Fired 59 | 30 11 18 Gun 48 | 30 3 15 Cannon . | . . . Launcher 11 | . 8 3 Special . | . . . Kinetic 11 | . . 11 Thermal 20 | 15 1 4 Explosive 11 | . 8 3 Electromagnetic 17 | 15 2 . Robot Hit Streak 9 | 4 9 2 Robot Miss Streak 9 | 2 2 9 Penetration Max . | . . . Secondary Targets . | . . . Shots Hit Robots 33 | 17 9 7 Core Hits 40 | 12 16 12 Critical Kills . | . . . Critical Parts Destroyed . | . . . Critical Strikes . | . . . Melee Attacks 6 | . . 6 Impact . | . . . Slashing 6 | . . 6 Piercing . | . . . Sneak Attacks . | . . . Combat Hostiles . | . . . Follow-up Attacks . | . . . Damage Inflicted 1338 | 416 484 438 Guns 284 | 205 16 63 Cannons . | . . . Explosions 1021 | 211 441 369 Melee . | . . . Ramming 33 | . 27 6 Kinetic 51 | . . 51 Thermal 288 | 276 . 12 Explosive 810 | . 441 369 Electromagnetic 156 | 140 16 . Impact . | . . . Slashing . | . . . Piercing . | . . . Highest Corruption . | . . . Average Corruption . | . . . Corruption Purged . | . . . Corruption Blocked . | . . . Overload Shots . | . . . Overflow Damage 65 | 16 16 33 Projectiles . | . . . Explosions 65 | 16 16 33 Melee . | . . . Knockbacks . | . . . Impact . | . . . Kinetic . | . . . Secondary . | . . . Self-Inflicted Damage 141 | . 11 130 Shots 3 | . . 3 Rammed 9 | . 7 2 Targets Rammed 9 | . 7 2 Kicked . | . . . Crushed . | . . . Highest Temperature 72 | 72 33 2 Average Temperature 21 | 24 14 1 Received Heat Transfer 375 | . 114 261 Siege Activations . | . . . Robots Corrupted . | . . . Combat Hostiles . | . . . Parts Fried . | . . . Impact Corruptions . | . . . Robots Melted . | . . . Combat Hostiles . | . . . Parts Melted . | . . . Heat Transferred 325 | 300 . 25 Parts Sabotaged . | . . . Parts Stolen . | . . . Parts Stripped . | . . . Power Chain Reactions 2 | 2 . . Missiles Intercepted . | . . . Alert | -11 -10 -9 ------- Run | Scr Mat Mat Peak Influence 272 | 55 252 272 Initial 105 | . 35 105 Average 101 | 26 111 142 Maximum Alert Level 1 | . 1 1 Low Security (%) 88 | 100 73 86 Level 1 11 | . 26 13 Level 2 . | . . . Level 3 . | . . . Level 4 . | . . . Level 5 . | . . . High Security . | . . . Max Security . | . . . Squads Dispatched 4 | . 2 2 Investigation 1 | . 1 . Extermination . | . . . Reinforcement 3 | . 1 2 Assault . | . . . Garrison . | . . . Intercept . | . . . Searches Triggered . | . . . Construction Impeded . | . . . Haulers Reinforced . | . . . Active Scanning Responses . | . . . Cargo Convoy Interrupts . | . . . Stealth | -11 -10 -9 --------- Run | Scr Mat Mat Distress Signals 3 | . . 3 Communications Jammed . | . . . Distress Signals . | . . . Times Spotted 40 | . 10 30 Peak Tracking Total 17 | . 6 17 Tactical Retreats 5 | . . 5 Traps | -11 -10 -9 ------- Run | Scr Mat Mat Traps Triggered . | . . . Indirectly . | . . . Trap Hack Attempts . | . . . Triggered . | . . . Disarmed . | . . . Reprogrammed . | . . . Reused . | . . . Traps Extracted . | . . . Installed . | . . . Triggered . | . . . Machines | -11 -10 -9 ---------- Run | Scr Mat Mat Machines Disabled 1 | . . 1 Max in Single Turn 1 | . . 1 Machines Sabotaged . | . . . Garrisons Compromised . | . . . Overloaded Fab Kills . | . . . Hacking | -11 -10 -9 --------- Run | Scr Mat Mat Machines Accessed 2 | . 2 . Terminals 2 | . 2 . Fabricators . | . . . Repair Stations . | . . . Recycling Units . | . . . Scanalyzers . | . . . Garrison Access . | . . . Total Hacks 5 | . 5 . Successful . | . . . Failed 5 | . 5 . Catastrophic 2 | . 2 . Database Lockouts . | . . . Manual 5 | . 5 . Terminals 5 | . 5 . Fabricators . | . . . Repair Stations . | . . . Recycling Units . | . . . Scanalyzers . | . . . Garrison Access . | . . . Terminal Hacks . | . . . Fabricator Hacks . | . . . Repair Station Hacks . | . . . Recycling Unit Hacks . | . . . Scanalyzer . | . . . Garrison Access Hacks . | . . . Unauthorized Hacks . | . . . Terminals . | . . . Fabricators . | . . . Repair Stations . | . . . Recycling Units . | . . . Scanalyzers . | . . . Garrison Access . | . . . Data Cores Recovered 1 | . 1 . Used . | . . . Hacking Detections 2 | . 2 . Full Trace Events 2 | . 2 . Feedback Events . | . . . Feedback Blocked . | . . . Robot Schematics Acquired . | . . . Robots Built . | . . . Authchips . | . . . Time . | . . . Total Robot Build Rating . | . . . Part Schematics Acquired . | . . . Parts Built . | . . . Authchips . | . . . Time . | . . . Total Part Build Rating . | . . . Parts Repaired . | . . . Time . | . . . Parts Recycled . | . . . Recycled Matter . | . . . Retrieved Matter . | . . . Retrieved Components . | . . . Parts Scanalyzed . | . . . Part Schematics Acquired . | . . . Parts Damaged . | . . . Bothacking | -11 -10 -9 ------------ Run | Scr Mat Mat Used RIF Installer . | . . . Robots Hacked . | . . . Non-combat . | . . . Combat . | . . . Robot Hacks Applied . | . . . Relay Couplers Released . | . . . Fabnet Peak Effective % . | . . . Robots Rewired . | . . . Allies Hacked . | . . . Hacks Repelled . | . . . Allies | -11 -10 -9 -------- Run | Scr Mat Mat Total Allies . | . . . Largest Group . | . . . Highest-Rated Group . | . . . Highest-Rated Ally . | . . . Total Orders . | . . . Ally Attacks . | . . . Total Damage . | . . . Kills . | . . . Allies Corrupted . | . . . Allies Melted . | . . . Intel | -11 -10 -9 ------- Run | Scr Mat Mat Robot Analysis Total . | . . . Derelict Logs Recovered . | . . . Drone Launches . | . . . Drone Recoveries . | . . . Exploration | -11 -10 -9 ------------- Run | Scr Mat Mat Turns Passed 833 | 254 147 432 Spaces Moved 662 | 116 117 429 Core 22 | . . 22 Treads . | . . . Legs 94 | 94 . . Wheels 289 | 22 117 150 Hover 257 | . . 257 Flight . | . . . Fastest Speed 56 | 100 100 56 Average Speed 86 | 116 100 75 Slowest Speed 200 | 120 100 200 Overloaded Moves . | . . . Propulsion Burnouts . | . . . Robots Hopped . | . . . Cave-ins Triggered . | . . . Exploration Rate (%) 23 | 7 28 34 Regions Visited 2 Branch Regions . Pre-discovered Areas . | . . . Known Exits Taken . | . . . Unknown Exits Taken 2 | 1 1 . Scrap Searched . | . . . Spaces Dug 6 | . . 6 Terrain Destroyed 46 | 5 23 18 Melee 6 | . . 6 Projectile . | . . . AOE 40 | 5 23 12 Terrain Rammed . | . . . Walls Destroyed . | . . . Machines Disabled . | . . . Actions | -11 -10 -9 --------- Run | Scr Mat Mat Total 849 | 206 136 507 Wait 87 | 63 . 24 Move 660 | 115 116 429 Hop . | . . . Pick Up 7 | 2 1 4 Fast Attach 12 | 4 . 8 Attach 6 | . . 6 Detach 4 | 1 . 3 Swap 5 | . 1 4 Drop 14 | 6 1 7 Fire 39 | 15 10 14 Melee 6 | . . 6 Ram 9 | . 7 2 Kick . | . . . Crush . | . . . Escape Stasis . | . . . Rewire . | . . . Trap . | . . . Miscellaneous . | . . . Route ------- -11/Scrapyard -10/Materials -9/Materials History --------- Turn | Location | Event 8 | -11/Scrapyard | Discovered new exit (range 3) 255 | -11/Scrapyard | Entered Materials 317 | -10/Materials | Build established: Mutant 383 | -10/Materials | Discovered new exit (range 15) 402 | -10/Materials | Entered another Materials area 402 | -9/Materials | Evolved 2 slots: Utility x2 791 | -9/Materials | Core integrity fell below 50% 825 | -9/Materials | Core integrity fell below 20% 834 | -9/Materials | Destroyed self with Mini Grenade Launcher Last Messages --------------- 00767_ Imp. Terrain Scanner destroyed. 00770_ Lgt. Ion Engine destroyed. 00788_ Mining Claw severed. 00792_ G-34 Mercenary destroyed. 00793_ Grenade Launcher destroyed. 00816_ Sml. Storage Unit destroyed. 00821_ Slammed into A-02 Transporter. 00821_ W-16 Scout sends out distress signal. 00822_ Lgt. Ion Engine destroyed. 00826_ Acquired Mni. Grenade Launcher. 00830_ Com. Wheel destroyed. 00830_ T-07 Excavator is excavating. 00831_ W-16 Scout destroyed. 00831_ Wheel destroyed. 00831_ Destroyed Wheel. 00831_ Mni. Grenade Launcher destroyed. 00831_ Destroyed Mni. Grenade Launcher. 00831_ Electrolysis Chamber disabled. 00831_ S-10 Pest destroyed. 00833_ Seismic Detector destroyed. Map ----- +----------------------------------------------------+ | ?????????????????????????????????????????????????? | | ?????????????????????????????????????????????????? | | ?????????????????????????????????????????????????? | | ?????????????????????????????????????????????????? | | ?????????????????????????????????????????????????? | | ?????????????????????????????????????????????????? | | ?????????????????????????????????????????????????? | | ?????????????????????????????????????????????????? | | ?????????????????????????????????????????????????? | | ?????????????????????????????????????????????????? | | ?????????????????????????????????????????????????? | | #######????????????????????? ?????????????????? | | #???????????????????? #????????????????? | | """ #???????????????????? #????????????????? | | """ #???????????????????? #????????????????? | | """ ###??????????####+### #????????????????? | | [ #??????????# a #????????????????? | | !%= ##?????????# #????????????????? | | ###/ ########### """ #????????????????? | | # # # = # " " #????????????????? | | #### wY # " " #???????????????????? | | / """""""r# = #?????? ?????????? | | #### """"""" l %= %= #### [ ?????????? | | #??# """"""" #Y ]]k! s/ ??????????? | | #??# """"""" #gg b]!! ####???????????????? | | #??# """"""" g gg]]@ #??????????????????? | | ##?# g # g# ##+##??????????????????? | | #?######/#### # ??????????????????????? | | #??????###??# # [ ??????????????????????? | | ###### ###???#???? # "?????????????????????? | | # #??????? # # "?????????????????????? | | # #??????#### # ""????????????????????? | | "" + #?????????# ######????????????????????? | | "" # #?????????# #?????????????????????????? | | "" # #?????????# #?????????????????????????? | | ?### ###?????????# #?????????????????????????? | | ####?# #????? ?????+ +?????????????????????????? | | #?# #???#???????# ??????????????????????????? | | #?# #??#?#??????# ??????????????????????????? | | ### #?????????????????????????????????????????? | | ### #####?????????????????????????????????????? | | #?# !!#?????????????????????????????????????? | | = ### !!#?????????????????????????????????????? | | #?# !!#?????????????????????????????????????? | | #?# !#?????????????????????????????????????? | | #?# !!#?????????????????????????????????????? | | ###### !!#?????????????????????????????????????? | | #######??#?#??????????????????????????????? | | #######?????????????????????????????????????????? | | ###########?????????????????????????????????????? | +----------------------------------------------------+ Best States ------------- Heat Dissipation 28 Energy Generation 10 Energy Capacity 125 Matter Stores 300 Matter Capacity 500 Sight Range 16 Terrain Scan Range 16 Terrain Scan Density 10 Evasion (%) 55 Offensive Hacking 10 Item Schematics ----------------- None Robot Schematics ------------------ None Fabricated ------------ Nothing Alien Tech Used ----------------- None Achievements -------------- None Challenges ------------ None Game ------ Seed LayeredHypercooledTerrabomb Manual? 0 Play Time 00:16:16 Cumulative 75.5 hours Start 2022.03.18 @ 05:22:34 End 2022.03.18 @ 05:34:40 Sessions 1 Manual Loads 0 Difficulty Rogue Special Mode None Game No. 107 Rogue 61 Adventurer 45 Explorer 1 Win Type - Total 0 Types 0/0/0/0/0/0/0/0/0 Lore% 25 Gallery% 44 Achievement% 31 Wizard Run 0 Options --------- ASCII 0 Keyboard 0 Movement Mouse Keybinds 0 Fullscreen 2 Font 18/X11Bold Map View 76x50 Tactical HUD 1 Map Filters NONE Filters LOW_CONTRAST(13,24,33)|BRIGHTNESS(90)|SATURATION(87) Steam 1 RUN: 2e358332-eda3-4add-8a1f-34ab2171f60f